Cogmind - Beta 13 @@@ ROGUE MODE // 2024.07.19 @ 16:36:14 Player: dwarfinator Result: Destroyed by H-88 Terminator with KE Penetrator Performance ------------- Evolutions (8) 4000 Regions Visited (11) 2200 Robots Destroyed (0) 0 Value Destroyed (0) 0 Prototype IDs (3) 60 Alien Tech Used (0) 0 Bonus (6711) 6711 TOTAL SCORE: 12971 Bonus ------- Pacifist 5711 Entered DSFs 1000 Cogmind --------- Core Integrity 0/1450 Matter 57/300 Energy 37/100 System Corruption 14% Temperature Cool (0) Movement Core (50) Location -2/Research Parts ------- > --- POWER (2) -------- (None) > --- PROPULSION (10) -- Myomer Leg Myomer Leg Cooled Q-thruster > --- UTILITY (9) ------ Improved Signal Interpreter Advanced Terrain Scan Processor Advanced Terrain Scan Processor Advanced Terrain Scan Processor > --- WEAPON (2) ------- (None) > --- INVENTORY (5) ---- Improved Plasma Cutter Peak State ------------ > --- POWER ------------ (None) > --- PROPULSION ------- Myomer Leg Myomer Leg Myomer Leg Myomer Leg Combat Gravmag System Cooled Q-thruster > --- UTILITY ---------- Improved Signal Interpreter Advanced Terrain Scan Processor Advanced Terrain Scan Processor Advanced Terrain Scan Processor > --- WEAPON ----------- Long-range Phase Cannon > --- INVENTORY -------- Improved Plasma Cutter [Rating: 67] Favorites ----------- Power Improved Deuterium Engine Engine Improved Deuterium Engine Propulsion VTOL Module Treads Armored Medium Treads Leg Myomer Leg Hover Unit Aerolev Unit Flight Unit VTOL Module Utility Advanced Terrain Scan Processor Device Structural Scanner Processor Advanced Terrain Scan Processor Weapon Katana Energy Cannon Long-range Phase Cannon Ballistic Gun Shotgun Slashing Weapon Katana Build | -11 -10 -9 -8 -7 -6 -5 -5 -4 -3 -3 -2 ------- Run | Yrd Mat Mat Mat Fac Fac Fac DSF Fac Res DSF Res Slots Evolved 16 | . . 2 2 2 2 2 . 2 2 . 2 Power 1 | . . . . . 1 . . . . . . Propulsion 8 | . . 1 2 1 1 2 . . . . 1 Utility 7 | . . 1 . 1 . . . 2 2 . 1 Weapon . | . . . . . . . . . . . . Parts Attached 48 | . . 11 10 2 1 . 3 3 . . 18 Power 2 | . . . 1 1 . . . . . . . Engine 2 | . . . 1 1 . . . . . . . Core . | . . . . . . . . . . . . Reactor . | . . . . . . . . . . . . Propulsion 29 | . . 8 6 1 1 . . . . . 13 Treads 6 | . . . . . . . . . . . 6 Leg 4 | . . . . . . . . . . . 4 Wheel . | . . . . . . . . . . . . Hover 7 | . . 3 1 . 1 . . . . . 2 Flight 12 | . . 5 5 1 . . . . . . 1 Utility 10 | . . 3 1 . . . 2 3 . . 1 Device 4 | . . 1 1 . . . . 2 . . . Storage . | . . . . . . . . . . . . Processor 6 | . . 2 . . . . 2 1 . . 1 Hackware . | . . . . . . . . . . . . Protection . | . . . . . . . . . . . . Artifact . | . . . . . . . . . . . . Weapon 7 | . . . 2 . . . 1 . . . 4 Energy Gun . | . . . . . . . . . . . . Energy Cannon 1 | . . . . . . . . . . . 1 Ballistic Gun 1 | . . . 1 . . . . . . . . Ballistic Cannon . | . . . . . . . . . . . . Launcher . | . . . . . . . . . . . . Special Weapon . | . . . . . . . . . . . . Impact Weapon . | . . . . . . . . . . . . Slashing Weapon 5 | . . . 1 . . . 1 . . . 3 Piercing Weapon . | . . . . . . . . . . . . Special Melee Weapon . | . . . . . . . . . . . . Unidentified Prototypes 3 | . . . 1 . . . . . . . 2 Parts Lost 31 | . . 5 6 1 . . . . . . 19 Power 2 | . . . . 1 . . . . . . 1 Propulsion 23 | . . 5 4 . . . . . . . 14 Utility 4 | . . . 1 . . . . . . . 3 Weapon 2 | . . . 1 . . . . . . . 1 Highest Loss Streak 16 | . . 5 6 1 . . . . . . 16 To Critical Strikes 1 | . . 1 . . . . . . . . . Average Slot Usage (%) 49 | . . 42 54 65 64 58 70 78 . 71 47 Engine 2 | . . . 3 4 6 5 5 5 . 4 . Treads 1 | . . . . . . . . . . . 6 Hover 5 | . . 12 2 7 10 11 11 10 . 9 2 Flight 14 | . . 8 20 28 26 23 23 21 . 19 8 Device 7 | . . 11 10 7 6 5 5 10 . 9 5 Processor 13 | . . 10 12 7 6 5 14 21 . 19 20 Slashing Weapon 2 | . . . 3 7 6 5 8 10 . 9 . Naked Turns 59 | . 59 . . . . . . . . . . Heaviest Build 17 | . . 1 6 13 13 13 16 17 17 17 17 Greatest Support 75 | 3 3 14 16 17 17 17 17 17 17 17 75 Greatest Overweight (x) 3 | . . . . . . . . . . . 3 Average Overweight (x) . | . . . . . . . . . . . . Largest Inventory Capacity 5 | 5 5 5 5 5 5 5 5 5 5 5 5 Average Capacity 5 | 5 5 5 5 5 5 5 5 5 5 5 5 Most Carried 5 | . 3 5 5 3 4 5 5 4 3 5 5 Average Carried 3 | . 1 3 4 3 3 4 4 3 3 3 3 Final Capacity 5 | 5 5 5 5 5 5 5 5 5 5 5 5 Final Carried 5 | . 3 5 3 3 4 5 5 3 3 5 1 Class Distribution -------------------- 57% | Sprinter 42% | Mutant Dominant Class ---------------- Mutant | -10/Materials Mutant | -9/Materials Sprinter | -8/Materials Sprinter | -7/Factory Sprinter | -6/Factory Sprinter | -5/Factory Sprinter | -5/DSF Sprinter | -4/Factory Sprinter | -3/Research Sprinter | -3/DSF Mutant | -2/Research Resources | -11 -10 -9 -8 -7 -6 -5 -5 -4 -3 -3 -2 ----------- Run | Yrd Mat Mat Mat Fac Fac Fac DSF Fac Res DSF Res Matter Collected 275 | 75 . 82 9 . . . . . . . 109 Remotely . | . . . . . . . . . . . . Salvage Created . | . . . . . . . . . . . . Parts . | . . . . . . . . . . . . Haulers Intercepted . | . . . . . . . . . . . . Recyclers Shooed . | . . . . . . . . . . . . Parts Field Recycled . | . . . . . . . . . . . . Retrieved Matter . | . . . . . . . . . . . . Parts Self-Destructed . | . . . . . . . . . . . . Prevented . | . . . . . . . . . . . . Kills | -11 -10 -9 -8 -7 -6 -5 -5 -4 -3 -3 -2 ------- Run | Yrd Mat Mat Mat Fac Fac Fac DSF Fac Res DSF Res Combat Hostiles Destroyed . | . . . . . . . . . . . . Classes Destroyed . | . . . . . . . . . . . . Best Kill Streak . | . . . . . . . . . . . . Combat Bots Only . | . . . . . . . . . . . . Max Kills in Single Turn . | . . . . . . . . . . . . Gunslinging . | . . . . . . . . . . . . Exploded . | . . . . . . . . . . . . Melee . | . . . . . . . . . . . . Uniques/NPCs Destroyed . | . . . . . . . . . . . . Combat | -11 -10 -9 -8 -7 -6 -5 -5 -4 -3 -3 -2 -------- Run | Yrd Mat Mat Mat Fac Fac Fac DSF Fac Res DSF Res Hostile Shots Fired 443 | . 24 63 77 18 . . 1 . . 4 256 Missed 183 | . 9 19 46 8 . . 1 . . 3 97 Damage Taken 5485 | . 158 395 575 144 . . . . . . 4213 Core 2055 | . 158 178 221 44 . . . . . . 1454 Absorbed by Shields . | . . . . . . . . . . . . Core Remaining (%) 82 | 100 36 55 59 93 100 . 100 100 . 100 . Volleys Fired . | . . . . . . . . . . . . Largest . | . . . . . . . . . . . . Hottest . | . . . . . . . . . . . . Shots Fired . | . . . . . . . . . . . . Gun . | . . . . . . . . . . . . Cannon . | . . . . . . . . . . . . Launcher . | . . . . . . . . . . . . Special . | . . . . . . . . . . . . Kinetic . | . . . . . . . . . . . . Thermal . | . . . . . . . . . . . . Explosive . | . . . . . . . . . . . . Electromagnetic . | . . . . . . . . . . . . Robot Hit Streak . | . . . . . . . . . . . . Robot Miss Streak . | . . . . . . . . . . . . Penetration Max . | . . . . . . . . . . . . Secondary Targets . | . . . . . . . . . . . . Shots Hit Robots . | . . . . . . . . . . . . Core Hits . | . . . . . . . . . . . . Critical Kills . | . . . . . . . . . . . . Critical Parts Destroyed . | . . . . . . . . . . . . Critical Strikes . | . . . . . . . . . . . . Melee Attacks 6 | . . . 1 1 . . . . . . 4 Impact . | . . . . . . . . . . . . Slashing 6 | . . . 1 1 . . . . . . 4 Piercing . | . . . . . . . . . . . . Sneak Attacks . | . . . . . . . . . . . . Combat Hostiles . | . . . . . . . . . . . . Follow-up Attacks . | . . . . . . . . . . . . Damage Inflicted 16 | . . . 4 . . . . . . . 12 Guns . | . . . . . . . . . . . . Cannons . | . . . . . . . . . . . . Explosions . | . . . . . . . . . . . . Melee . | . . . . . . . . . . . . Ramming 16 | . . . 4 . . . . . . . 12 Kinetic . | . . . . . . . . . . . . Thermal . | . . . . . . . . . . . . Explosive . | . . . . . . . . . . . . Electromagnetic . | . . . . . . . . . . . . Impact . | . . . . . . . . . . . . Slashing . | . . . . . . . . . . . . Piercing . | . . . . . . . . . . . . Highest Corruption 14 | . . 2 . 2 . . . . . . 14 Average Corruption 5 | . . 2 . 2 . . . . . . 6 Corruption Purged . | . . . . . . . . . . . . Corruption Blocked . | . . . . . . . . . . . . Effects 8 | . . . . 2 . . . . . . 6 Message Errors 3 | . . . . 1 . . . . . . 2 Matter Fused 1 | . . . . . . . . . . . 1 Heat Flow Errors 1 | . . . . . . . . . . . 1 Energy Discharges 1 | . . . . 1 . . . . . . . Alerts 1 | . . . . . . . . . . . 1 Misdirections 1 | . . . . . . . . . . . 1 Overload Shots . | . . . . . . . . . . . . Overflow Damage . | . . . . . . . . . . . . Projectiles . | . . . . . . . . . . . . Explosions . | . . . . . . . . . . . . Melee . | . . . . . . . . . . . . Knockbacks . | . . . . . . . . . . . . Impact . | . . . . . . . . . . . . Kinetic . | . . . . . . . . . . . . Secondary . | . . . . . . . . . . . . Self-Inflicted Damage 7 | . . . 1 . . . . . . . 6 Shots . | . . . . . . . . . . . . Rammed 6 | . . 1 2 . . . . . . . 3 Targets Rammed 6 | . . 1 2 . . . . . . . 3 Kicked . | . . . . . . . . . . . . Crushed . | . . . . . . . . . . . . Highest Temperature 417 | . . . . 1 . . . . . . 417 Average Temperature 174 | . . . . 1 . . . . . . 190 Received Heat Transfer 279 | . 9 33 93 63 . . . . . . 81 Effects 3 | . . . . . . . . . . . 3 Interference 3 | . . . . . . . . . . . 3 Siege Activations . | . . . . . . . . . . . . Robots Corrupted . | . . . . . . . . . . . . Combat Hostiles . | . . . . . . . . . . . . Parts Fried . | . . . . . . . . . . . . Impact Corruptions . | . . . . . . . . . . . . Robots Melted . | . . . . . . . . . . . . Combat Hostiles . | . . . . . . . . . . . . Parts Melted . | . . . . . . . . . . . . Heat Transferred . | . . . . . . . . . . . . Parts Sabotaged . | . . . . . . . . . . . . Parts Stolen . | . . . . . . . . . . . . Parts Stripped . | . . . . . . . . . . . . Power Chain Reactions . | . . . . . . . . . . . . Alert | -11 -10 -9 -8 -7 -6 -5 -5 -4 -3 -3 -2 ------- Run | Yrd Mat Mat Mat Fac Fac Fac DSF Fac Res DSF Res Peak Influence 366 | . 45 107 114 366 242 118 86 44 22 20 70 Initial 179 | . . 18 44 40 179 118 86 44 22 20 11 Average 57 | . 16 32 74 109 232 118 86 44 22 20 27 Maximum Alert Level 1 | . . . . 1 1 . . . . . . Low Security (%) 95 | 100 100 100 100 91 10 100 100 100 100 100 100 Level 1 4 | . . . . 8 89 . . . . . . Level 2 . | . . . . . . . . . . . . Level 3 . | . . . . . . . . . . . . Level 4 . | . . . . . . . . . . . . Level 5 . | . . . . . . . . . . . . High Security . | . . . . . . . . . . . . Max Security . | . . . . . . . . . . . . Squads Dispatched 10 | . 1 1 2 2 . . . . . . 4 Investigation 6 | . . 1 2 1 . . . . . . 2 Extermination . | . . . . . . . . . . . . Reinforcement 4 | . 1 . . 1 . . . . . . 2 Assault . | . . . . . . . . . . . . Garrison . | . . . . . . . . . . . . Intercept . | . . . . . . . . . . . . Searches Triggered . | . . . . . . . . . . . . Construction Impeded . | . . . . . . . . . . . . Haulers Reinforced . | . . . . . . . . . . . . Active Scanning Responses . | . . . . . . . . . . . . Cargo Convoy Interrupts . | . . . . . . . . . . . . Stealth | -11 -10 -9 -8 -7 -6 -5 -5 -4 -3 -3 -2 --------- Run | Yrd Mat Mat Mat Fac Fac Fac DSF Fac Res DSF Res Distress Signals 5 | . . 1 1 1 . . . . . . 2 Communications Jammed . | . . . . . . . . . . . . Distress Signals . | . . . . . . . . . . . . Times Spotted 88 | . 9 18 21 13 1 . . . . 1 25 Peak Tracking Total 18 | . 9 16 14 8 1 . 1 . . 1 18 Tactical Retreats 11 | . . 2 4 2 . . . . . . 3 Traps | -11 -10 -9 -8 -7 -6 -5 -5 -4 -3 -3 -2 ------- Run | Yrd Mat Mat Mat Fac Fac Fac DSF Fac Res DSF Res Traps Triggered 4 | . 1 2 . . . . . . . . 1 Indirectly . | . . . . . . . . . . . . Trap Hack Attempts . | . . . . . . . . . . . . Triggered . | . . . . . . . . . . . . Disarmed . | . . . . . . . . . . . . Reprogrammed . | . . . . . . . . . . . . Reused . | . . . . . . . . . . . . Traps Extracted . | . . . . . . . . . . . . Installed . | . . . . . . . . . . . . Triggered . | . . . . . . . . . . . . Machines | -11 -10 -9 -8 -7 -6 -5 -5 -4 -3 -3 -2 ---------- Run | Yrd Mat Mat Mat Fac Fac Fac DSF Fac Res DSF Res Machines Disabled . | . . . . . . . . . . . . Max in Single Turn . | . . . . . . . . . . . . Garrison Access 1 | . . . . 1 . . . . . . . Machines Repaired . | . . . . . . . . . . . . Machines Dismantled . | . . . . . . . . . . . . Machines Sabotaged . | . . . . . . . . . . . . Overloaded Fab Kills . | . . . . . . . . . . . . Hacking | -11 -10 -9 -8 -7 -6 -5 -5 -4 -3 -3 -2 --------- Run | Yrd Mat Mat Mat Fac Fac Fac DSF Fac Res DSF Res Machines Accessed 14 | . . 2 2 1 1 1 . . 1 . 6 Terminals 13 | . . 2 2 . 1 1 . . 1 . 6 Fabricators . | . . . . . . . . . . . . Repair Stations . | . . . . . . . . . . . . Recycling Units . | . . . . . . . . . . . . Scanalyzers . | . . . . . . . . . . . . Garrison Access 1 | . . . . 1 . . . . . . . Total Hacks 32 | . . 6 7 2 1 1 . . 2 . 13 Successful 9 | . . 2 1 1 1 1 . . 1 . 2 Failed 23 | . . 4 6 1 . . . . 1 . 11 Catastrophic 5 | . . 2 1 1 . . . . . . 1 Database Lockouts . | . . . . . . . . . . . . Manual 15 | . . 4 2 1 . . . . . . 8 Terminals 30 | . . 6 7 . 1 1 . . 2 . 13 Fabricators . | . . . . . . . . . . . . Repair Stations . | . . . . . . . . . . . . Recycling Units . | . . . . . . . . . . . . Scanalyzers . | . . . . . . . . . . . . Garrison Access 2 | . . . . 2 . . . . . . . Terminal Hacks 5 | . . . 1 . 1 1 . . 1 . 1 Open DSF 3 | . . . . . . 1 . . 1 . 1 Level Access Points 1 | . . . . . 1 . . . . . . Branch Access Points 1 | . . . 1 . . . . . . . . Fabricator Hacks . | . . . . . . . . . . . . Repair Station Hacks . | . . . . . . . . . . . . Recycling Unit Hacks . | . . . . . . . . . . . . Scanalyzer . | . . . . . . . . . . . . Garrison Access Hacks . | . . . . . . . . . . . . Unauthorized Hacks 4 | . . 2 . 1 . . . . . . 1 Terminals 3 | . . 2 . . . . . . . . 1 Botnet 3 | . . 2 . . . . . . . . 1 Fabricators . | . . . . . . . . . . . . Repair Stations . | . . . . . . . . . . . . Recycling Units . | . . . . . . . . . . . . Scanalyzers . | . . . . . . . . . . . . Garrison Access 1 | . . . . 1 . . . . . . . Jam 1 | . . . . 1 . . . . . . . Data Cores Recovered . | . . . . . . . . . . . . Used . | . . . . . . . . . . . . Hacking Detections 12 | . . 2 2 1 . . . . 1 . 6 Full Trace Events 5 | . . 1 2 . . . . . . . 2 Feedback Events . | . . . . . . . . . . . . Feedback Blocked . | . . . . . . . . . . . . Robot Schematics Acquired . | . . . . . . . . . . . . Robots Built . | . . . . . . . . . . . . Authchips . | . . . . . . . . . . . . Time . | . . . . . . . . . . . . Total Robot Build Rating . | . . . . . . . . . . . . Part Schematics Acquired . | . . . . . . . . . . . . Parts Built . | . . . . . . . . . . . . Authchips . | . . . . . . . . . . . . Time . | . . . . . . . . . . . . Total Part Build Rating . | . . . . . . . . . . . . Parts Repaired . | . . . . . . . . . . . . Time . | . . . . . . . . . . . . Parts Recycled . | . . . . . . . . . . . . Recycled Matter . | . . . . . . . . . . . . Retrieved Matter . | . . . . . . . . . . . . Retrieved Components . | . . . . . . . . . . . . Parts Scanalyzed . | . . . . . . . . . . . . Part Schematics Acquired . | . . . . . . . . . . . . Parts Damaged . | . . . . . . . . . . . . Bothacking | -11 -10 -9 -8 -7 -6 -5 -5 -4 -3 -3 -2 ------------ Run | Yrd Mat Mat Mat Fac Fac Fac DSF Fac Res DSF Res Used RIF Installer . | . . . . . . . . . . . . Robots Hacked . | . . . . . . . . . . . . Non-combat . | . . . . . . . . . . . . Combat . | . . . . . . . . . . . . Robot Hacks Applied . | . . . . . . . . . . . . Relay Couplers Released . | . . . . . . . . . . . . Fabnet Peak Effective % . | . . . . . . . . . . . . Robots Rewired . | . . . . . . . . . . . . Allies Hacked . | . . . . . . . . . . . . Hacks Repelled . | . . . . . . . . . . . . Allies | -11 -10 -9 -8 -7 -6 -5 -5 -4 -3 -3 -2 -------- Run | Yrd Mat Mat Mat Fac Fac Fac DSF Fac Res DSF Res Total Allies . | . . . . . . . . . . . . Largest Group . | . . . . . . . . . . . . Highest-Rated Group . | . . . . . . . . . . . . Highest-Rated Ally . | . . . . . . . . . . . . Total Orders . | . . . . . . . . . . . . Ally Attacks . | . . . . . . . . . . . . Total Damage . | . . . . . . . . . . . . Kills . | . . . . . . . . . . . . Allies Corrupted . | . . . . . . . . . . . . Allies Melted . | . . . . . . . . . . . . Intel | -11 -10 -9 -8 -7 -6 -5 -5 -4 -3 -3 -2 ------- Run | Yrd Mat Mat Mat Fac Fac Fac DSF Fac Res DSF Res Robot Analysis Total . | . . . . . . . . . . . . Derelict Logs Recovered . | . . . . . . . . . . . . Drone Launches . | . . . . . . . . . . . . Drone Recoveries . | . . . . . . . . . . . . Exploration | -11 -10 -9 -8 -7 -6 -5 -5 -4 -3 -3 -2 ------------- Run | Yrd Mat Mat Mat Fac Fac Fac DSF Fac Res DSF Res Turns Passed 741 | 9 59 118 142 93 29 13 16 11 3 17 231 Spaces Moved 1643 | 18 111 214 378 295 93 42 32 26 10 53 371 Core 537 | 18 111 108 . . . . . . . . 300 Treads . | . . . . . . . . . . . . Legs 4 | . . . . . . . . . . . 4 Wheels . | . . . . . . . . . . . . Hover 6 | . . 2 . . . . . . . . 4 Flight 1096 | . . 104 378 295 93 42 32 26 10 53 63 Fastest Speed 28 | 50 50 29 28 28 28 28 28 28 28 28 28 Average Speed 37 | 50 50 40 31 28 28 28 28 28 28 28 49 Slowest Speed 200 | 50 50 60 35 32 28 28 28 28 28 28 200 Overloaded Moves . | . . . . . . . . . . . . Propulsion Burnouts . | . . . . . . . . . . . . Robots Hopped 25 | . . 10 10 4 . . . . . . 1 Cave-ins Triggered . | . . . . . . . . . . . . Exploration Rate (%) 24 | 3 37 32 34 13 5 1 41 1 . 79 19 Regions Visited 11 Branch Regions . Pre-discovered Areas . | . . . . . . . . . . . . Known Exits Taken 7 | . . 1 1 1 1 1 . 1 1 . . Unknown Exits Taken 2 | 1 1 . . . . . . . . . . Scrap Searched . | . . . . . . . . . . . . Spaces Dug 4 | . . . 1 1 . . . . . . 2 Terrain Destroyed 4 | . . . 1 1 . . . . . . 2 Melee 4 | . . . 1 1 . . . . . . 2 Projectile . | . . . . . . . . . . . . AOE . | . . . . . . . . . . . . Terrain Rammed . | . . . . . . . . . . . . Walls Destroyed . | . . . . . . . . . . . . Machines Disabled . | . . . . . . . . . . . . Actions | -11 -10 -9 -8 -7 -6 -5 -5 -4 -3 -3 -2 --------- Run | Yrd Mat Mat Mat Fac Fac Fac DSF Fac Res DSF Res Total 1721 | 17 113 235 386 295 94 42 37 29 9 54 410 Wait 10 | . . . 3 2 . . . . . . 5 Move 1587 | 17 110 197 358 286 92 41 31 25 9 52 369 Hop 21 | . . 6 10 4 . . . . . . 1 Pick Up 27 | . 3 12 2 . 1 1 2 . . 2 4 Fast Attach 27 | . . 8 6 2 1 . 2 . . . 8 Attach 21 | . . 3 4 . . . 1 3 . . 10 Detach 5 | . . . 1 . . . . 1 . . 3 Swap . | . . . . . . . . . . . . Drop 12 | . . 8 . . . . 1 . . . 3 Fire . | . . . . . . . . . . . . Melee 6 | . . . 1 1 . . . . . . 4 Ram 5 | . . 1 1 . . . . . . . 3 Kick . | . . . . . . . . . . . . Crush . | . . . . . . . . . . . . Escape Stasis . | . . . . . . . . . . . . Rewire . | . . . . . . . . . . . . Trap . | . . . . . . . . . . . . Miscellaneous . | . . . . . . . . . . . . Route ------- -11/Scrapyard -10/Materials -9/Materials (discovered 2 exits: *Mat / [*Min]) -8/Materials -7/Factory (discovered 2 exits: *Fac / *Sto) -6/Factory (discovered 4 exits: *Fac x4) -5/Factory -5/DSF -4/Factory -3/Research -3/DSF -2/Research (discovered 1 exit: [Qua]) History --------- Turn | Location | Event 2 | -11/Scrapyard | Discovered new exit (range 16) 10 | -11/Scrapyard | Entered Materials 59 | -10/Materials | Core integrity fell below 50% 61 | -10/Materials | Discovered new exit (range 15) 69 | -10/Materials | Entered another Materials area 69 | -9/Materials | Evolved 2 slots: Propulsion x1, Utility x1 131 | -9/Materials | Discovered new exit (range 11) 182 | -9/Materials | Discovered new exit (range 16) 187 | -9/Materials | Identified exit to Materials 187 | -9/Materials | Entered another Materials area 187 | -8/Materials | Evolved 2 slots: Propulsion x2 223 | -8/Materials | Lost 6 parts (6n) 306 | -8/Materials | Lost 4 parts (2n1u1w) 323 | -8/Materials | Discovered new exit (range 16) 327 | -8/Materials | Identified exit to Factory 329 | -8/Materials | Entered Factory 329 | -7/Factory | Evolved 2 slots: Propulsion x1, Utility x1 375 | -7/Factory | Discovered new exit (range 12) 378 | -7/Factory | Identified exit to Storage 420 | -7/Factory | Discovered new exit (range 8) 422 | -7/Factory | Identified exit to Factory 422 | -7/Factory | Entered another Factory area 422 | -6/Factory | Evolved 2 slots: Power x1, Propulsion x1 425 | -6/Factory | Identified exit to Factory 430 | -6/Factory | Build established: Sprinter 451 | -6/Factory | Entered another Factory area 451 | -5/Factory | Evolved 2 slots: Propulsion x2 464 | -5/Factory | Identified exit to DSF 464 | -5/Factory | Entered DSF 476 | -5/DSF | Discovered new exit (range 13) 479 | -5/DSF | Identified exit to Factory 480 | -5/DSF | Entered Factory 480 | -4/Factory | Evolved 2 slots: Utility x2 486 | -4/Factory | Discovered new exit (range 18) 491 | -4/Factory | Identified exit to Research 491 | -4/Factory | Entered Research 491 | -3/Research | Evolved 2 slots: Utility x2 494 | -3/Research | Identified exit to DSF 494 | -3/Research | Entered DSF 505 | -3/DSF | Discovered new exit (range 15) 511 | -3/DSF | Identified exit to Research 511 | -3/DSF | Entered Research 511 | -2/Research | Evolved 2 slots: Propulsion x1, Utility x1 568 | -2/Research | Lost 3 parts (1p2n) 651 | -2/Research | Discovered new exit (range 19) 660 | -2/Research | Spotted B-90 Cyclops 666 | -2/Research | Spotted B-90 Cyclops 712 | -2/Research | System corruption reached 10% 713 | -2/Research | Core integrity fell below 50% 729 | -2/Research | Core integrity fell below 20% 742 | -2/Research | Destroyed by H-88 Terminator with KE Penetrator Last Messages --------------- 00728_ Acquired Myomer Leg. 00731_ Acquired Prototype Energy Cannon. 00731_ Identified Lrn. Phase Cannon. 00731_ Faulty integration triggers heat surge (+466). 00732_ Overheating: System interference. 00732_ Adv. Terrain Scan Processor temporarily disabled. 00732_ Imp. Signal Interpreter temporarily disabled. 00733_ Dropped Faulty Lrn. Phase Cannon. 00735_ Cmb. Gravmag System destroyed. 00735_ Myomer Leg destroyed. 00736_ Slammed into P-80 Master. 00737_ Slammed into K-01 Serf. 00738_ Acquired 6 matter. 00739_ Slammed into K-01 Serf. 00739_ Penetrated by Slug. 00739_ Slug penetrates Wall. 00739_ Myomer Leg destroyed. 00739_ Penetrated by Slug. 00742_ Slug penetrates H-88 Terminator. 00742_ Penetrated by Slug. Map ----- +----------------------------------------------------+ | ?????????????????????????????????????????????????? | | ?????????????????????????????????????????????????? | | ?????????????????????????????????????????????????? | | ?????????????????????????????????????????????????? | | ?????????????????????????????????????????????????? | | ?????????????????????????????????????????????????? | | ?????????????????????????????????????????????????? | | ?????????????????????????????????????????????????? | | ?????????????????????????????????????????????????? | | ?????????????????????????????????????????????????? | | ????????????# ##?????????????????????????????????? | | ????????????# ?????????????????????????????????? | | ????????????+ #????????????????????????????????? | | ????????????# #????????????????????????????????? | | ????????????# +???????????###########??????????? | | ????????????# #???????????# #??????????? | | ????????????# #???????????# ] #??????????? | | ??########### #####+##????# ]] #??????????? | | ??# ## #????# ]! % #??????????? | | ??# / #????# ] #??????????? | | ??# ## #????# #??????????? | | ??# ## #????# #??????????? | | ??? ## #????# #??????????? | | ????? ??# ###??###"/######??????????? | | #######/##### #######pH #?????????????? | | ! RRR @k p #?????????????? | | % h h s su #?????????????? | | Y #### h #?????????????? | | ###### ###+####??## ######## #?????????????? | | ????# #? ?????# #??????#######?????????????? | | #??# ## ????# #??????????????????????????? | | #??# ## #???# #??????????????????????????? | | ##?# ## #???#+#??????????????????????????? | | ""?# ## #?? ???? ?#??????????????????????? | | ""?# ## #???? ?? ???????#??#??#?????????? | | ""# ####+##????"????#?# ??""??"??? ????????? | | T# " ????? ?#? ??? ??#?? """???" ?#?#?????? | | ""# "T ? +? ?? ??##? ? ? ? #??#???? | | ""# ? ? ?? ????? ?### ? ? #??##???# | | "?# ? ##??###????"""? # #? ? ?? ? #?##?#?#? | | #?##??##??????##? ? ? ### ?? ? ? ?##???##? | | #???? #?# ? ? ?# ? ? ?### #???#?##? | | ######? ##? ? ?#??#??#??#?#? #?###??#? | | ? ## ### ? ???###?##?####? ? # ??#?## | | ? ? #????+ ?? ##?##?##?#?##? ? ####?#?## | | ?######?? ##???###?#### ??? ? #?#? ###? | | #?####? ? ####?#?###### ? ? ##?#?##?? | | ?###?# ?#?#?############+#+###?#####? #### | | ###### ? ????###### #####?######## | | #################### ######## | +----------------------------------------------------+ Best States ------------- Heat Dissipation 49 Energy Generation 16 Energy Capacity 290 Matter Stores 237 Matter Capacity 300 Sight Range 16 Terrain Scan Range 20 Terrain Scan Density 810 Evasion (%) 64 Recoil Reduction 1 Trap Extractor Capacity 4 Item Schematics ----------------- None Robot Schematics ------------------ None Fabricated ------------ Nothing Alien Tech Used ----------------- None Achievements -------------- None Challenges ------------ None Game ------ Seed HardlightDecoyRouter Manual? 0 Play Time 01:16:28 Cumulative 106.4 hours Start 2024.07.19 @ 13:19:47 End 2024.07.19 @ 16:36:14 Sessions 3 Manual Loads 0 Difficulty Rogue Special Mode None Game No. 17 Rogue 14 Adventurer 3 Explorer 0 Win Type - Total 4 Types 4/0/0/0/0/0/0/0/0 Lore% 50 Gallery% 70 Achievement% 58 Wizard Run 0 Options --------- Layout 0 ASCII 0 Keyboard 0 Movement Numpad Keybinds 0 Fullscreen 1 Font 18/SmallcapsGlow Map View 76x50 Zoom Use 0% Tactical HUD 1 Map Filters NONE Filters NONE Steam 1 RUN: c3b22a58-1869-4de7-968a-b8591c2b2581